bitfinex/quotes_SOLUSD_20241121
["timestamp","ask_amount","ask_price","bid_price","bid_amount"]
[1732165088072,1.0,240.22,240.14,5.61795447]
[1732165088274,0.5,240.2,240.14,5.61795447]
[1732165088476,0.5,240.22,240.11,4.2256928]
[1732165088792,28.12746513,240.12,240.11,4.2256928]
[1732165089470,67.01134533,240.12,240.11,4.2256928]
[1732165089668,80.27454533,240.12,240.03,9.97956288]
[1732165089873,38.8838802,240.04,239.95,70.0]
[1732165090182,38.8838802,239.96,239.95,9.97956288]
[1732165090897,38.8838802,239.98,239.95,79.97956288]
[1732165091195,0.5,240.09,239.96,5.21221332]
[1732165091492,38.8838802,239.97,239.96,5.21221332]
[1732165091899,38.8838802,239.97,239.96,9.6352543]
[1732165092275,38.8838802,239.97,239.96,29.6352543]
[1732165093284,38.8838802,239.97,239.96,53.4121383]
[1732165093674,38.8838802,239.97,239.96,25.21221332]
[1732165093880,38.8838802,239.97,239.96,29.93858763]
[1732165094583,38.8838802,239.97,239.96,99.93858763]
[1732165094776,82.6922802,240.12,240.05,20.0]
[1732165094977,82.6922802,240.12,240.06,5.63637431]
[1732165095280,82.6922802,240.12,240.07,20.0]
[1732165095675,82.6922802,240.12,240.07,25.63637431]
[1732165095876,82.6922802,240.12,240.09,20.0]
[1732165096071,38.8838802,240.1,240.09,20.0]
[1732165096271,39.3838802,240.1,240.09,20.0]
[1732165096496,39.3838802,240.1,239.97,5.21221332]
[1732165096497,0.5,240.08,239.99,5.63637431]
[1732165096686,1.0,240.1,240.0,20.0]
[1732165096893,0.5,240.05,239.99,5.63637431]
[1732165097097,77.7677604,240.0,239.99,5.63637431]
[1732165097982,77.7677604,240.0,239.92,5.21221332]
[1732165098191,38.8838802,239.93,239.92,5.7952632]
[1732165098699,77.7677604,239.93,239.92,5.7952632]
[1732165099199,77.7677604,239.93,239.87,5.21221332]
[1732165099400,0.5,239.96,239.87,5.21221332]
[1732165099401,38.8838802,239.88,239.87,5.21221332]
[1732165099583,38.8838802,239.88,239.87,11.00747652]
[1732165099894,77.7677604,239.88,239.87,11.00747652]
[1732165100076,38.8838802,239.88,239.87,11.00747652]
[1732165100273,38.8838802,239.88,239.87,38.70486439]
[1732165100470,32.0881,239.97,239.9,70.0]
[1732165100695,38.8838802,239.92,239.91,31.00747652]
[1732165101076,38.8838802,239.96,239.93,70.0]
[1732165101269,38.8838802,239.96,239.91,31.00747652]
[1732165101270,38.8838802,239.94,239.91,20.0]
[1732165101472,38.8838802,240.0,239.94,5.21221332]
[1732165101694,38.8838802,239.95,239.94,5.21221332]
[1732165101906,33.50716378,239.95,239.94,5.21221332]
[1732165102377,33.50716378,239.95,239.94,10.20061133]
[1732165102699,33.50716378,239.95,239.94,30.20061133]
[1732165103481,33.50716378,239.95,239.94,25.21221332]
[1732165103689,33.50716378,239.95,239.94,30.20061133]
[1732165104493,33.50716378,239.95,239.94,24.98839801]
[1732165104777,23.97497404,239.95,239.91,3.92050387]
[1732165104976,23.97497404,239.92,239.89,20.0]
[1732165105190,23.97497404,239.9,239.89,20.0]
[1732165105398,0.5,239.98,239.86,23.92050387]
[1732165105705,23.97497404,239.87,239.86,23.92050387]
[1732165105903,23.97497404,239.87,239.86,33.38440438]
[1732165106286,23.97497404,239.95,239.91,20.0]
[1732165106489,23.97497404,239.95,239.92,4.62812482]
[1732165107281,24.47497404,240.0,239.91,20.0]
[1732165107282,23.97497404,239.93,239.91,20.0]
[1732165107499,23.97497404,239.93,239.86,3.92050387]
[1732165107702,23.97497404,239.89,239.86,3.92050387]
[1732165108009,23.97497404,240.0,239.86,3.92050387]
[1732165108010,23.97497404,239.87,239.86,3.92050387]
[1732165108179,23.97497404,239.89,239.86,8.54862869]
[1732165109109,23.97497404,239.91,239.87,29.46390051]
[1732165109311,23.97497404,239.93,239.87,33.38440438]
[1732165109606,23.97497404,239.93,239.88,23.92050387]
[1732165109799,23.97497404,239.93,239.89,24.62812482]
[1732165110004,23.97497404,239.91,239.89,20.0]
[1732165110608,23.97497404,239.95,239.89,28.54862869]
[1732165110814,23.97497404,239.95,239.9,33.38440438]
[1732165111182,23.97497404,240.0,239.9,33.38440438]
[1732165111183,23.97497404,239.93,239.9,33.38440438]
[1732165111503,23.97497404,239.93,239.9,28.54862869]
[1732165111798,23.97497404,239.91,239.9,3.92050387]
[1732165113696,23.97497404,239.91,239.84,20.0]
[1732165113697,23.97497404,239.91,239.85,3.92050387]
[1732165113902,23.97497404,239.88,239.85,3.92050387]
[1732165114681,23.97497404,239.86,239.85,3.92050387]
[1732165115086,23.97497404,239.86,239.78,73.92050387]
[1732165115283,23.97497404,239.9,239.83,3.92050387]
[1732165115494,12.794,239.92,239.83,13.38440438]
[1732165115495,23.97497404,239.88,239.83,13.38440438]
[1732165115799,23.97497404,239.86,239.84,8.75627956]
[1732165115984,23.97497404,239.88,239.84,3.92050387]
[1732165116294,23.97497404,239.88,239.85,4.62812482]
[1732165116727,23.97497404,239.88,239.85,24.62812482]
[1732165117092,23.97497404,239.88,239.85,29.46390051]
[1732165117808,23.97497404,239.92,239.86,28.75627956]
[1732165118008,23.97497404,239.92,239.87,4.92423593]
[1732165118215,23.97497404,239.92,239.87,29.76001162]
[1732165118415,23.97497404,239.92,239.88,24.83577569]
[1732165118715,23.97497404,239.9,239.89,24.92423593]
[1732165119093,23.97497404,239.9,239.86,6.0]
[1732165119094,0.5,239.89,239.86,6.0]
[1732165119302,23.97497404,239.88,239.86,6.0]
[1732165120393,23.97497404,239.88,239.87,24.92423593]
[1732165121994,23.97497404,239.88,239.87,20.0]
[1732165122521,23.97497404,239.9,239.87,20.0]
[1732165122699,23.97497404,239.92,239.88,4.92423593]
[1732165123019,23.97497404,239.92,239.89,20.0]
[1732165123191,23.97497404,239.92,239.9,4.92423593]
[1732165124294,23.97497404,239.94,239.9,9.76001162]
[1732165124595,23.97497404,239.94,239.91,20.0]
[1732165124803,23.97497404,239.94,239.91,24.92423593]
[1732165125007,23.97497404,239.94,239.92,4.92423593]
[1732165125921,13.293,239.97,239.92,4.92423593]
[1732165126218,0.5,239.96,239.9,3.92050387]
[1732165126587,13.293,239.97,239.9,3.92050387]
[1732165126895,13.293,239.97,239.91,4.92423593]
[1732165127598,13.293,239.97,239.91,24.92423593]
[1732165127787,13.293,239.97,239.91,28.8447398]
[1732165129801,13.293,239.97,239.91,3.92050387]
[1732165131311,13.293,239.97,239.92,24.92423593]
[1732165131498,13.293,239.97,239.92,28.8447398]
[1732165133624,13.293,239.97,239.86,10.83577569]
[1732165133917,13.293,239.97,239.86,19.68051549]
[1732165134118,13.293,239.97,239.87,4.92423593]
[1732165134317,13.293,239.97,239.87,5.42423593]
[1732165134318,0.5,239.96,239.87,5.42423593]
[1732165134519,0.5,239.96,239.87,4.92423593]
[1732165134694,0.5,239.96,239.87,5.42423593]
[1732165135118,0.5,239.96,239.87,9.3447398]
[1732165135501,0.5,239.96,239.88,20.0]
[1732165135798,0.5,239.96,239.88,4.92423593]
[1732165136115,0.5,239.96,239.89,28.8447398]
[1732165136303,0.5,239.96,239.89,23.92050387]
[1732165136726,0.5,239.96,239.89,3.92050387]
[1732165137229,0.5,239.96,239.85,3.92050387]
[1732165138221,0.5,239.93,239.85,3.92050387]
[1732165139599,0.5,239.93,239.86,20.0]
[1732165139901,0.5,239.96,239.87,4.92423593]
[1732165140829,0.5,239.94,239.87,4.92423593]
[1732165141616,0.5,239.94,239.87,9.76001162]
[1732165141824,0.5,239.94,239.88,20.0]
[1732165142001,0.5,239.94,239.89,4.92423593]
[1732165142201,0.5,239.96,239.89,4.92423593]
[1732165142816,0.5,239.94,239.89,4.92423593]
[1732165143213,0.5,239.94,239.86,0.5]
[1732165143399,0.5,239.94,239.87,4.92423593]
[1732165143598,0.5,239.94,239.87,24.92423593]
[1732165143822,7.793,239.97,239.9,0.5]
[1732165144017,30.7682,239.99,239.91,9.76001162]
[1732165144195,0.5,239.97,239.92,20.0]
[1732165144906,0.5,239.97,239.91,24.92423593]
[1732165145222,0.5,239.97,239.91,4.92423593]
[1732165145426,0.5,239.92,239.85,0.5]
[1732165145603,0.5,239.93,239.86,9.3447398]
[1732165145799,0.5,239.95,239.86,9.3447398]
[1732165146001,0.5,239.97,239.86,14.18051549]
[1732165146233,0.5,239.94,239.87,0.5]
[1732165146520,0.5,239.95,239.88,4.92423593]
[1732165147910,0.5,239.95,239.86,3.92050387]
[1732165148101,0.5,239.95,239.87,0.5]
[1732165148432,0.5,239.95,239.88,20.0]
[1732165149128,0.5,239.95,239.87,24.92423593]
[1732165149506,23.776884,239.97,239.87,24.92423593]
[1732165149703,0.5,239.95,239.87,24.92423593]
[1732165150104,0.5,239.95,239.88,0.5]
[1732165150331,0.5,239.95,239.88,25.42423593]
[1732165150831,0.5,239.95,239.89,20.0]
[1732165151015,31.2682,239.99,239.89,20.0]
[1732165151340,31.2682,239.99,239.92,0.5]
[1732165151629,31.2682,239.99,239.93,20.0]
[1732165152017,30.7682,239.99,239.93,24.92423593]
[1732165152214,13.3049,240.02,239.94,0.5]
[1732165152407,31.1271,240.06,239.97,0.5]
[1732165152608,0.5,240.04,239.98,24.92423593]
[1732165153423,0.5,240.03,239.98,24.92423593]
[1732165154828,0.5,240.03,239.96,20.0]
[1732165155012,0.5,240.02,239.95,3.92050387]
[1732165156032,0.5,240.02,239.96,20.0]
[1732165156438,0.5,240.01,239.96,20.0]
[1732165157035,0.5,240.01,239.95,4.92423593]
[1732165158020,0.5,240.01,239.96,20.0]
[1732165158224,0.5,240.01,239.95,4.92423593]
[1732165158622,0.5,240.0,239.95,4.92423593]
[1732165158823,0.5,240.0,239.91,20.0]
[1732165159138,0.5,239.98,239.9,23.92050387]
[1732165159329,0.5,239.96,239.9,3.92050387]
[1732165159846,0.5,239.96,239.9,8.8447398]
[1732165160342,4.924236,239.95,239.91,4.92423593]
[1732165160531,4.924236,239.95,239.91,24.92423593]
[1732165160930,4.924236,239.95,239.91,30.26001162]
[1732165161123,4.924236,239.95,239.93,20.5]
[1732165161329,30.6271,240.06,239.95,20.0]
[1732165161547,0.5,240.05,239.97,20.0]
[1732165161717,30.6271,240.06,239.98,4.92423593]
[1732165161922,0.5,240.02,239.97,20.0]
[1732165162139,0.5,240.0,239.91,20.0]
[1732165162755,0.5,240.0,239.91,28.8447398]
[1732165163044,0.5,239.99,239.92,4.92423593]
[1732165163252,0.5,240.03,239.94,0.5]
[1732165163427,0.5,240.03,239.95,4.92423593]
[1732165164249,0.5,240.03,239.95,24.92423593]
[1732165164451,4.924236,240.02,239.95,24.92423593]
[1732165164945,0.5,240.01,239.95,24.92423593]
[1732165165525,0.5,240.01,239.94,3.92050387]
[1732165165747,24.276884,240.01,239.94,3.92050387]
[1732165166252,24.276884,240.01,239.92,0.5]
[1732165166253,0.5,240.01,239.92,0.5]
[1732165166756,0.5,239.97,239.9,8.8447398]
[1732165167627,0.5,239.99,239.91,0.5]
[1732165167820,0.5,239.99,239.92,4.92423593]
[1732165168021,0.5,239.99,239.85,70.0]
[1732165168242,0.5,240.01,239.86,24.74778229]
[1732165168450,5.424236,240.02,239.89,20.0]
[1732165168650,5.424236,240.02,239.91,20.0]
[1732165168853,0.5,239.99,239.91,20.0]
[1732165169148,4.924236,240.02,239.91,20.0]
[1732165169149,0.5,240.01,239.91,20.0]
[1732165169623,4.924236,240.02,239.9,8.20595304]
[1732165169624,0.5,239.98,239.9,3.63735637]
[1732165170231,0.5,239.99,239.9,3.63735637]
[1732165170437,0.5,239.99,239.85,4.74778229]
[1732165170664,0.5,239.99,239.86,3.63735637]
[1732165171035,0.5,239.99,239.87,9.31637896]
[1732165171254,0.5,239.99,239.88,20.0]
[1732165171425,5.424236,240.02,239.88,20.0]
[1732165171745,4.924236,240.02,239.9,20.0]
[1732165172051,4.924236,240.02,239.92,20.0]
[1732165172243,4.924236,240.02,239.93,3.63735637]
[1732165173845,0.5,240.01,239.87,20.0]
[1732165174154,0.5,240.01,239.88,3.63735637]
[1732165174656,0.5,239.98,239.88,3.63735637]
[1732165176639,24.776884,240.0,239.88,3.63735637]
[1732165176842,0.5,239.98,239.88,3.63735637]
[1732165177334,0.5,239.98,239.89,20.0]
[1732165177537,0.5,239.98,239.88,3.63735637]
[1732165178033,0.5,239.98,239.83,3.63735637]
[1732165178239,0.5,239.98,239.85,20.0]
[1732165178440,23.776884,240.01,239.87,20.0]
[1732165178753,0.5,240.0,239.87,29.31637896]
[1732165179050,0.5,239.98,239.87,29.31637896]
[1732165179556,5.424236,240.02,239.88,4.56859667]
[1732165179736,5.424236,240.02,239.89,20.0]
[1732165179936,4.924236,240.02,239.91,20.0]
[1732165180141,5.424236,240.02,239.91,24.56859667]
[1732165182872,4.924236,240.02,239.91,24.56859667]
[1732165183160,4.924236,240.02,239.91,28.20595304]
[1732165185444,4.924236,240.02,239.92,4.56859667]
[1732165185647,30.6271,240.06,239.96,20.0]
[1732165185961,30.6271,240.06,239.93,58.76453944]
[1732165185962,31.6718,240.12,240.01,14.98765544]
[1732165186134,31.6718,240.12,240.02,28.38513866]
[1732165186336,31.6718,240.12,240.02,23.63735637]
[1732165186559,0.5,240.09,240.02,20.0]
[1732165186962,0.5,240.09,239.95,20.0]
[1732165187467,0.5,240.11,239.95,20.0]
[1732165187964,24.276884,240.11,239.95,24.56859667]
[1732165188540,32.1718,240.12,239.96,29.31637896]
[1732165188767,31.6718,240.12,239.99,20.0]
[1732165188944,31.6718,240.12,240.0,9.51809562]
[1732165189144,31.6718,240.12,240.01,24.77031333]
[1732165189343,31.6718,240.12,240.01,20.0]
[1732165189553,31.6718,240.12,240.01,25.03428784]
[1732165190476,31.6718,240.12,240.02,5.03428784]
[1732165190768,31.6718,240.12,240.03,20.0]
[1732165191338,31.6718,240.12,240.03,90.0]
[1732165191539,13.2336,240.15,240.05,20.0]
[1732165191791,13.2336,240.15,240.06,5.03428784]
[1732165191952,13.2336,240.15,240.07,20.0]
[1732165192538,13.2336,240.15,240.06,5.03428784]
[1732165192539,13.2336,240.15,240.05,3.63735637]
[1732165193144,23.776884,240.14,240.05,3.63735637]
[1732165195242,23.776884,240.14,240.0,5.03428784]
[1732165195243,24.276884,240.14,240.0,5.03428784]
[1732165195446,24.276884,240.14,240.0,8.67164421]
[1732165195979,23.776884,240.14,240.0,8.67164421]
[1732165196572,23.776884,240.14,240.01,20.0]
[1732165198482,24.276884,240.14,240.01,20.0]
[1732165199075,23.776884,240.14,240.01,20.0]
[1732165199300,24.276884,240.14,240.01,20.0]
[1732165199482,24.276884,240.14,240.01,25.03428784]
[1732165199676,0.5,240.12,240.01,25.03428784]
[1732165200073,24.276884,240.14,240.02,5.03428784]
[1732165200259,0.5,240.12,240.03,20.0]
[1732165200459,23.776884,240.14,240.03,25.03428784]
[1732165200681,23.776884,240.14,240.05,20.0]
[1732165201360,23.776884,240.14,240.07,20.0]
[1732165201669,23.776884,240.14,240.02,4.77083867]
[1732165201878,23.776884,240.14,240.04,20.0]
[1732165202063,23.776884,240.14,240.06,20.0]
[1732165202385,24.276884,240.14,240.06,20.0]
[1732165202690,0.5,240.1,240.0,3.63735637]
[1732165204288,0.5,240.14,240.02,20.0]
[1732165204461,13.7336,240.15,240.03,13.44248288]
[1732165204785,13.2336,240.15,240.04,20.0]
[1732165204977,13.7336,240.15,240.06,20.0]
[1732165205173,13.7336,240.15,240.07,9.80512651]
[1732165205484,13.2336,240.15,240.08,20.0]
[1732165205678,0.5,240.17,240.09,9.80512651]
[1732165205870,0.5,240.17,240.1,20.0]
[1732165206057,0.5,240.17,240.11,4.77083867]
[1732165206260,0.5,240.17,240.1,25.03428784]
[1732165206457,31.6491,240.18,240.1,25.03428784]
[1732165206766,31.6491,240.18,240.12,20.0]
[1732165207284,31.6491,240.18,240.03,20.0]
[1732165207586,0.5,240.14,239.96,32.1206]
[1732165207755,0.5,240.16,239.97,74.42663904]
[1732165207962,0.5,240.16,239.98,3.3896005]
[1732165208162,0.5,240.16,240.0,70.0]
[1732165208364,23.776884,240.17,240.0,73.3896005]
[1732165208698,0.5,240.16,240.01,4.42663904]
[1732165208981,0.5,240.16,240.01,24.42663904]
[1732165209586,0.5,240.12,239.94,82.9335]
[1732165210187,0.5,240.12,239.94,87.36013904]
[1732165210371,0.5,240.12,239.94,95.42053166]
[1732165210774,0.5,240.12,239.95,24.42663904]
[1732165211081,0.5,240.14,239.95,32.48703166]
[1732165211484,0.5,240.12,239.96,24.67079212]
[1732165211661,0.5,240.14,239.97,24.42663904]
[1732165211862,0.5,240.14,239.97,29.09743116]
[1732165212283,0.5,240.14,239.97,44.0850866]
[1732165212586,0.5,240.15,239.98,24.67079212]
[1732165213860,1.0,240.15,239.97,4.42663904]
[1732165214085,0.5,240.13,239.97,4.42663904]
[1732165214399,13.01,240.11,239.98,4.67079212]
[1732165214602,0.5,240.09,239.9,70.0]
[1732165214893,44.3095,240.11,239.9,70.0]
[1732165214894,0.5,240.07,239.9,70.0]
[1732165215964,0.5,240.07,239.91,20.0]
[1732165216591,0.5,240.07,239.89,20.0]
[1732165216796,0.5,240.05,239.88,20.0]
[1732165217085,0.5,240.03,239.87,70.0]
[1732165217276,0.5,240.01,239.82,70.0]
[1732165217590,0.5,239.97,239.79,70.0]
[1732165217791,0.5,239.95,239.79,70.0]
[1732165218006,0.5,239.95,239.77,7.81623954]
[1732165218297,0.5,239.93,239.77,7.81623954]
[1732165218473,0.5,239.93,239.77,77.81623954]
[1732165218670,0.5,239.98,239.77,77.81623954]
[1732165218968,0.5,239.96,239.77,7.81623954]
[1732165219193,0.5,239.93,239.74,74.67079212]
[1732165219473,0.5,239.93,239.74,70.0]
[1732165220066,0.5,239.91,239.71,73.3896005]
[1732165220263,1.0,239.93,239.71,73.3896005]
[1732165220467,0.5,239.9,239.71,73.3896005]
[1732165221372,45.7911,239.89,239.72,20.0]
[1732165221572,45.7911,239.89,239.71,73.3896005]
[1732165221836,45.7911,239.88,239.7,4.42663904]
[1732165221977,0.5,239.85,239.68,4.67079212]
[1732165222182,0.5,239.83,239.68,4.67079212]
[1732165222493,45.7911,239.82,239.65,4.42663904]
[1732165222886,0.5,239.77,239.6,70.0]
[1732165223072,45.7911,239.73,239.6,70.0]
[1732165223579,45.7911,239.73,239.55,70.0]
[1732165224085,46.2911,239.73,239.56,4.51262546]
[1732165224273,46.2911,239.73,239.55,70.0]
[1732165224596,45.7911,239.73,239.56,8.49798673]
[1732165225203,45.7911,239.73,239.6,20.0]
[1732165225500,45.7911,239.73,239.63,20.0]
[1732165226497,45.7911,239.73,239.6,20.0]
[1732165226792,45.7911,239.73,239.57,3.3896005]
[1732165227796,46.2911,239.73,239.57,3.3896005]
[1732165228381,46.2911,239.73,239.55,70.0]
[1732165228707,45.7911,239.73,239.55,70.0]
[1732165229176,45.7911,239.73,239.56,20.0]
[1732165229600,46.2911,239.73,239.56,20.0]
[1732165229781,45.7911,239.73,239.56,20.0]
[1732165230190,45.7911,239.73,239.61,70.0]
[1732165230398,45.7911,239.73,239.62,24.51262546]
[1732165230696,62.456469,239.73,239.62,24.51262546]
[1732165231076,62.456469,239.73,239.62,20.0]
[1732165231281,45.7911,239.73,239.62,20.0]
[1732165231590,43.0348,239.79,239.68,20.0]
[1732165231788,16.661024,239.79,239.74,20.0]
[1732165232314,12.8978,239.85,239.74,20.0]
[1732165232626,12.8978,239.85,239.78,70.0]
[1732165232900,12.4976,239.91,239.82,20.0]
[1732165233316,12.4976,239.91,239.84,70.0]
[1732165233524,12.4976,239.91,239.85,20.0]
[1732165233695,31.87,239.94,239.85,20.0]
[1732165233900,31.87,239.94,239.86,4.49813904]
[1732165234609,31.87,239.94,239.85,20.0]
[1732165234925,12.4976,239.98,239.88,70.0]
[1732165235092,12.206,240.06,239.96,20.0]
[1732165235293,12.206,240.06,239.97,4.80147238]
[1732165235903,12.206,240.06,239.96,20.0]
[1732165236102,12.206,240.06,239.9,20.0]
[1732165236591,0.5,240.03,239.85,70.0]
[1732165236796,0.5,240.05,239.85,70.0]
[1732165237011,12.206,240.02,239.85,70.0]
[1732165237197,0.5,240.01,239.81,73.62793383]
[1732165237717,12.206,240.02,239.85,70.0]
[1732165238299,12.206,240.02,239.89,20.0]
[1732165238495,12.206,240.02,239.89,24.80147238]
[1732165238699,12.206,240.02,239.92,20.0]
[1732165238908,12.206,240.02,239.92,24.80147238]
[1732165239332,12.206,240.02,239.92,4.80147238]
[1732165239506,12.206,240.02,239.85,20.0]
[1732165240101,12.206,240.02,239.82,23.62793383]
[1732165240509,12.206,240.02,239.82,28.42940621]
[1732165240713,33.2791,240.01,239.82,8.42940621]
[1732165241121,13.5626,240.0,239.82,8.42940621]
[1732165241839,13.5626,240.0,239.82,4.80147238]
[1732165242206,13.0626,240.0,239.82,4.80147238]
[1732165242922,13.0626,240.0,239.86,70.0]
[1732165243511,13.0626,240.0,239.86,74.80147238]
[1732165243717,13.0626,240.0,239.87,4.80147238]
[1732165244835,13.0626,240.0,239.92,70.0]
[1732165245035,33.2791,240.01,239.95,70.0]
[1732165245335,33.2791,240.01,239.96,4.80147238]
[1732165246038,33.2791,240.01,239.92,3.62793383]
[1732165246332,33.2791,240.01,239.88,74.80147238]
[1732165246637,33.2791,240.01,239.88,4.80147238]
[1732165247007,33.2791,240.01,239.85,70.0]
[1732165247209,33.2791,240.01,239.86,4.80147238]
[1732165247607,174.0538,240.0,239.78,70.0]
[1732165247811,160.8,239.99,239.83,4.80147238]
[1732165248055,13.2538,240.0,239.83,4.80147238]
[1732165248831,13.2538,240.0,239.85,70.0]
[1732165249133,13.2538,240.0,239.86,4.80147238]
[1732165250621,13.7538,240.0,239.86,4.80147238]
[1732165250823,13.7538,240.0,239.79,70.0]
[1732165250824,13.7538,240.0,239.79,74.80147238]
[1732165251021,13.7538,240.0,239.8,4.80147238]
[1732165251222,0.5,239.98,239.8,4.80147238]
[1732165251539,13.2538,240.0,239.82,70.0]
[1732165251540,174.0538,240.0,239.82,70.0]
[1732165251735,174.0538,240.0,239.82,74.80147238]
[1732165252042,174.0538,240.0,239.83,4.80147238]
[1732165252431,13.2538,240.0,239.84,4.51262546]
[1732165252623,13.2538,240.0,239.83,4.80147238]
[1732165252942,13.2538,240.0,239.86,70.0]
[1732165253141,13.2538,240.0,239.87,4.80147238]
[1732165253926,13.2538,240.0,239.92,70.0]
[1732165254137,0.5,240.13,239.93,4.80147238]
[1732165254138,44.6714,240.12,239.93,4.80147238]
[1732165254521,44.6714,240.12,239.95,70.0]
[1732165254837,44.6714,240.12,239.96,4.80147238]
[1732165255825,44.6714,240.12,239.92,70.0]
[1732165256040,0.5,240.11,239.89,74.80147238]
[1732165256339,160.8,240.1,239.89,74.80147238]
[1732165256742,0.5,240.09,239.89,74.80147238]
[1732165257446,0.5,240.09,239.89,4.80147238]
[1732165257614,0.5,240.07,239.89,4.80147238]
[1732165257812,30.7592,240.04,239.83,70.0]
[1732165258041,30.7592,240.04,239.83,74.80147238]
[1732165258238,30.7592,240.04,239.84,4.80147238]
[1732165258422,30.7592,240.04,239.86,70.0]
[1732165258622,30.7592,240.04,239.86,74.80147238]
[1732165258820,30.7592,240.04,239.89,70.0]
[1732165259026,30.7592,240.04,239.9,4.80147238]
[1732165259447,30.7592,240.04,239.93,70.0]
[1732165259751,30.7592,240.04,239.94,9.31409784]
[1732165259933,161.3,240.14,239.94,9.31409784]
[1732165259934,205.2,240.13,239.94,9.31409784]
[1732165260244,44.4,240.13,239.94,9.31409784]
[1732165260417,44.4,240.13,239.94,4.80147238]
[1732165260620,44.4,240.13,239.9,27.6023056]
[1732165260621,0.5,240.11,239.9,3.62793383]
[1732165260839,44.4,240.13,239.93,70.0]
[1732165261020,44.4,240.13,239.94,4.80147238]
[1732165261227,44.4,240.13,239.94,9.31409784]
[1732165261523,44.4,240.13,239.94,4.80147238]
[1732165262223,44.4,240.13,239.9,73.62793383]
[1732165262224,0.5,240.12,239.9,73.62793383]
[1732165262851,0.5,240.12,239.91,20.0]
[1732165263350,0.5,240.12,239.91,24.80147238]
[1732165264323,44.4,240.13,239.92,4.80147238]
[1732165264522,0.5,240.12,239.92,4.80147238]
[1732165264950,44.4,240.13,239.92,4.80147238]
[1732165265150,44.4,240.13,239.94,20.0]
[1732165265328,44.4,240.13,239.95,4.80147238]
[1732165266153,44.4,240.13,239.99,70.0]
[1732165266447,13.1517,240.18,240.04,20.0]
[1732165267148,13.1517,240.18,240.01,20.0]
[1732165267332,13.1517,240.18,240.01,48.77584415]
[1732165267651,13.1517,240.18,240.04,20.0]
[1732165267858,13.1517,240.18,240.05,28.77584415]
[1732165268023,13.1517,240.18,240.06,20.0]
[1732165268652,13.1517,240.18,240.02,23.62793383]
[1732165269243,13.1517,240.18,240.02,3.62793383]
[1732165269448,13.1517,240.18,240.04,20.0]
[1732165269626,13.1517,240.18,240.06,20.0]
[1732165270141,13.1517,240.18,240.08,20.0]
[1732165270348,13.1517,240.18,240.1,20.0]
[1732165270524,173.9517,240.18,240.1,20.0]
[1732165270927,173.9517,240.18,240.06,20.0]
[1732165271131,173.9517,240.18,240.12,20.0]
[1732165271357,173.9517,240.18,240.14,20.0]
[1732165271530,173.9517,240.18,240.16,20.0]
[1732165271838,13.1517,240.18,240.16,20.0]
[1732165272457,12.9927,240.24,240.17,23.776884]
[1732165272752,12.9927,240.24,240.2,20.0]
[1732165273140,12.9927,240.24,240.09,43.776884]
[1732165273344,12.9927,240.24,240.09,48.57835638]
[1732165273543,12.9927,240.24,240.11,23.776884]
[1732165274058,12.9927,240.24,240.1,23.776884]
[1732165274657,160.8,240.23,240.1,23.776884]
[1732165275861,160.8,240.23,240.13,20.0]
[1732165276932,160.8,240.23,240.04,4.80147238]
[1732165276933,160.8,240.23,240.06,70.0]
[1732165277159,160.8,240.23,240.14,20.0]
[1732165277455,12.9927,240.24,240.16,20.0]
[1732165278633,12.9927,240.24,240.08,4.80147238]